fUST/lending_fUST_20250707
["ID","MTS","AMOUNT","RATE_DAILY","PERIOD"]
[370062013,1751871063085,-460.0,0.00018386,2]
[370062014,1751871063094,-460.0,0.00018553,2]
[370062015,1751871063104,-460.0,0.00018659,2]
[370062016,1751871063114,-460.0,0.0001866,2]
[370062017,1751871063124,-460.0,0.00018827,2]
[370062018,1751871063133,-460.0,0.00018829,2]
[370062019,1751871063143,-460.0,0.00018933,2]
[370062020,1751871063153,-504.72,0.00018934,2]
[370062021,1751871063163,-460.0,0.00019101,2]
[370062022,1751871063173,-92.6102483,0.00019103,2]
[370062023,1751871063183,-460.0,0.00019103,2]
[370062024,1751871063192,-460.0,0.00019105,2]
[370062025,1751871063201,-460.0,0.00019375,2]
[370062026,1751871063210,-460.0,0.00019376,2]
[370062027,1751871063220,-460.0,0.00019376,2]
[370062028,1751871063229,-460.0,0.00019379,2]
[370062029,1751871063239,-460.0,0.00019649,2]
[370062030,1751871063249,-460.0,0.0001965,2]
[370062031,1751871063258,-460.0,0.0001965,2]
[370062032,1751871063268,-460.0,0.00019923,2]
[370062033,1751871063278,-460.0,0.00019924,2]
[370062034,1751871063287,-460.0,0.00020196,2]
[370062035,1751871063297,-460.0,0.00020198,2]
[370062036,1751871063307,-460.0,0.0002047,2]
[370062037,1751871063316,-460.0,0.00020472,2]
[370062038,1751871063325,-460.0,0.00020744,2]
[370062039,1751871063335,-1259.56,0.00020746,2]
[370062040,1751871063344,-604.28402919,0.00020746,2]
[370062041,1751871063353,-460.0,0.00021018,2]
[370062042,1751871063363,-1259.56,0.0002102,2]
[370062043,1751871063373,-460.0,0.00021292,2]
[370062044,1751871063383,-1259.56,0.00021294,2]
[370062045,1751871063392,-460.0,0.00021566,2]
[370062046,1751871063401,-1259.56,0.00021568,2]
[370062047,1751871063410,-460.0,0.0002184,2]
[370062048,1751871063420,-1259.56,0.00021842,2]
[370062049,1751871063429,-524.98484073,0.00022,7]
[370062050,1751871063438,-460.0,0.00022114,2]
[370062051,1751871063447,-1259.56,0.00022116,2]
[370062052,1751871063456,-1259.56,0.0002239,2]
[370062053,1751871063466,-1259.56,0.00022664,2]
[370062054,1751871063475,-1259.56,0.00022938,2]
[370062055,1751871063485,-1259.63,0.00023212,2]
[370062056,1751871063495,-231.42319772,0.00023399,2]
[370062057,1751871063504,-206.0,0.0002438,2]
[370062058,1751871063514,-1718.27747877,0.00024538,2]
[370062059,1751871063524,-298.6722793,0.00024548,2]
[370062060,1751871063535,-180.7420961,0.00024548,2]
[370062061,1751871063545,-633.0,0.00024646,2]
[370062062,1751871063554,-8551.33671167,0.00024651,2]
[370062063,1751871063564,-150.0,0.00024658,2]
[370062064,1751871063573,-380.0,0.00024658,2]
[370062065,1751871063584,-200.0,0.00024658,15]
[370062066,1751871063594,-1900.15248053,0.00024659,11]
[370062067,1751871063603,-151.0,0.00024701,7]
[370062068,1751871063613,-206.0,0.0002471,2]
[370062069,1751871063623,-151.0,0.000248,7]
[370062070,1751871063634,-151.0,0.000248,7]
[370062071,1751871063644,-151.0,0.000248,7]
[370062072,1751871063653,-215.0738,0.00024811,2]
[370062073,1751871063663,-1700.212262,0.00024835,4]
[370062074,1751871063674,-800.0,0.00024852,2]
[370062075,1751871063684,-500.47201413,0.00024873,2]
[370062076,1751871063694,-500.0,0.00024873,2]
[370062077,1751871063705,-151.0,0.000249,7]
[370062078,1751871063716,-151.0,0.000249,7]
[370062079,1751871063726,-151.0,0.000249,7]
[370062080,1751871063736,-133768.55,0.000249,2]
[370062081,1751871063745,-151.0,0.000249,7]
[370062082,1751871063755,-151.0,0.000249,7]
[370062083,1751871063764,-151.0,0.000249,7]
[370062084,1751871063774,-215.733538,0.000249,7]
[370062085,1751871063784,-151.0,0.000249,7]
[370062086,1751871063793,-1153.94539485,0.000249,2]
[370062087,1751871063803,-151.0,0.000249,7]
[370062088,1751871063814,-151.0,0.000249,7]
[370062089,1751871063824,-151.0,0.000249,7]
[370062090,1751871063834,-151.0,0.000249,7]
[370062091,1751871063844,-151.0,0.000249,7]
[370062092,1751871063853,-151.0,0.000249,7]
[370062093,1751871063863,-151.0,0.000249,7]
[370062094,1751871063873,-151.967779,0.000249,7]
[370062095,1751871063882,-151.0,0.000249,7]
[370062096,1751871063892,-151.0,0.000249,7]
[370062097,1751871063901,-151.0,0.000249,7]
[370062098,1751871063911,-151.680062,0.000249,7]
[370062099,1751871063920,-151.0,0.000249,7]
[370062100,1751871063930,-151.0,0.000249,7]
[370062101,1751871063939,-151.0,0.000249,7]
[370062102,1751871063948,-151.0,0.000249,7]
[370062103,1751871063958,-151.0,0.000249,7]
[370062104,1751871063968,-151.0,0.000249,7]
[370062105,1751871063976,-151.0,0.000249,7]
[370062106,1751871063986,-151.0,0.000249,7]
[370062107,1751871063995,-151.0,0.000249,7]
[370062108,1751871064004,-173.199327,0.000249,7]
[370062109,1751871064013,-151.0,0.000249,7]
[370062110,1751871064023,-151.0,0.000249,7]
[370062111,1751871064032,-175.132456,0.000249,7]
[370062112,1751871064041,-175.132456,0.000249,7]
[370062113,1751871064050,-151.848374,0.000249,7]
[370062114,1751871064060,-151.0,0.000249,7]
[370062115,1751871064069,-151.0,0.000249,7]
[370062116,1751871064079,-154.422969,0.000249,7]
[370062117,1751871064088,-425.786097,0.000249,7]
[370062118,1751871064098,-425.786097,0.000249,7]
[370062119,1751871064190,-151.0,0.000249,7]
[370062120,1751871064200,-151.0,0.000249,7]
[370062121,1751871064210,-151.0,0.000249,7]
[370062122,1751871064219,-151.554982,0.000249,7]
[370062123,1751871064229,-151.0,0.000249,7]
[370062124,1751871064238,-151.0,0.000249,7]
[370062125,1751871064247,-151.412107,0.000249,7]
[370062126,1751871064257,-151.0,0.000249,7]
[370062127,1751871064267,-151.0,0.000249,7]
[370062128,1751871064276,-151.0,0.000249,7]
[370062129,1751871064286,-151.0,0.000249,7]
[370062130,1751871064296,-151.0,0.000249,7]
[370062131,1751871064305,-151.0,0.000249,7]
[370062132,1751871064314,-151.0,0.000249,7]
[370062133,1751871064323,-151.0,0.000249,7]
[370062134,1751871064332,-159.212382,0.000249,7]
[370062135,1751871064342,-159.212382,0.000249,7]
[370062136,1751871064351,-159.212382,0.000249,7]
[370062137,1751871064361,-159.212382,0.000249,7]
[370062138,1751871064370,-151.0,0.000249,7]
[370062139,1751871064380,-151.0,0.000249,7]
[370062140,1751871064389,-151.0,0.000249,7]
[370062141,1751871064399,-164.390613,0.000249,7]
[370062142,1751871064408,-164.390613,0.000249,7]
[370062143,1751871064418,-513710.74046305,0.000249,2]
[370062144,1751871170918,-176.53784178,0.00016816,2]
[370062145,1751871173928,-163.25735844,0.00016816,2]
[370062146,1751871176154,-314.74264156,0.00016816,2]
[370062147,1751871179681,-315.96180527,0.0001681,2]
[370062148,1751871196949,-130.63265594,0.0001681,2]
[370062149,1751871196972,-243.99353385,0.00016815,2]
[370062150,1751871200527,-56.00646615,0.00016815,2]
[370062151,1751871200550,-102.64051381,0.00016816,2]
[370062152,1751871206194,-160.40622917,0.00016816,2]
[370062153,1751871208667,-176.01737073,0.00016816,2]
[370062154,1751871215045,-315.87581546,0.00016816,2]
[370062155,1751871218409,-231.84616984,0.00016816,2]
[370062156,1751871220810,-204.91819473,0.00016816,2]
[370062160,1751871225977,-300.79080626,0.00016816,2]
[370062168,1751871241465,-247.38590056,0.00016816,2]
[370062173,1751871256033,-152.62650539,0.00016815,2]
[370062174,1751871270808,-147.37349461,0.00016815,2]
[370062175,1751871270830,-106.08452459,0.00016816,2]
[370062176,1751871287004,-321.87,0.00016815,2]
[370062183,1751871319958,253.4580192,0.00016714,2]
[370062195,1751871831878,165.456041,0.00013699,2]
[370062196,1751871935201,24900.0,0.00015814,2]
[370062197,1751871947117,-410.13584234,0.00016811,2]
[370062198,1751871953387,300000.0,0.00025393,60]
[370062199,1751872025088,-739.78,0.00016804,3]
[370062200,1751872025209,-1188.52026303,0.00016811,2]
[370062201,1751872037090,-309.85899534,0.00016811,2]
[370062202,1751872037113,-300.0,0.00016811,2]
[370062203,1751872037145,-108.36164418,0.00016811,2]
[370062204,1751872099038,1526.81208056,0.00016799,2]
[370062205,1751872151122,-321.87,0.00016804,3]
[370062206,1751872151146,-1091.63835582,0.00016811,2]
[370062207,1751872151168,-300.0,0.00016811,2]
[370062208,1751872151190,-300.0,0.00016812,2]
[370062209,1751872151226,-1200.0,0.00016812,2]
[370062210,1751872151249,-300.0,0.00016812,2]
[370062211,1751872151272,-460.0,0.00016812,2]
[370062212,1751872151298,-460.61268345,0.00016812,2]
[370062213,1751872151320,-460.0,0.00016812,2]
[370062214,1751872151342,-460.0,0.00016812,2]
[370062215,1751872151361,-460.0,0.00016812,2]
[370062216,1751872151382,-460.0,0.00016812,2]
[370062217,1751872151402,-460.0,0.00016812,2]
[370062218,1751872151422,-460.0,0.00016812,2]
[370062219,1751872151443,-460.0,0.00016812,2]
[370062220,1751872151466,-460.0,0.00016812,2]
[370062221,1751872151486,-460.0,0.00016812,2]
[370062222,1751872151507,-91.67203325,0.00016812,2]
[370062223,1751872160093,-368.32796675,0.00016812,2]
[370062224,1751872160117,-460.0,0.00016812,2]
[370062225,1751872160140,-460.0,0.00016812,2]
[370062226,1751872160164,-460.0,0.00016812,2]
[370062227,1751872160190,-460.0,0.00016812,2]
[370062228,1751872160215,-432.44737938,0.00016812,2]
[370062229,1751872160338,-500.0,0.00016812,2]
[370062230,1751872160361,-500.0,0.00016812,2]
[370062231,1751872160386,-180.21304369,0.00016812,2]
[370062233,1751872161168,-0.52036047,0.00016812,2]
[370062234,1751872161196,-500.0,0.00016812,2]
[370062235,1751872161222,-258.24251696,0.00016812,2]
[370062236,1751872161248,-500.0,0.00016812,2]
[370062237,1751872161271,-500.0,0.00016812,2]
[370062238,1751872161300,-500.0,0.00016812,2]
[370062239,1751872161327,-500.0,0.00016812,2]
[370062240,1751872161352,-305.06369252,0.00016812,2]
[370062241,1751872161379,-500.0,0.00016812,2]
[370062242,1751872161404,-604.95399353,0.00016812,2]
[370062243,1751872161427,-500.0,0.00016812,2]
[370062244,1751872161454,-460.0,0.00016812,2]
[370062245,1751872161478,-499.99999999,0.00016812,2]
[370062246,1751872161503,-460.0,0.00016812,2]
[370062247,1751872161526,-460.0,0.00016812,2]
[370062248,1751872161548,-500.0,0.00016812,2]
[370062249,1751872161571,-502.14332912,0.00016812,2]
[370062250,1751872161593,-460.0,0.00016812,2]
[370062251,1751872161615,-460.0,0.00016812,2]
[370062252,1751872161639,-460.0,0.00016812,2]
[370062253,1751872161661,-460.0,0.00016812,2]
[370062254,1751872161685,-460.0,0.00016812,2]
[370062255,1751872161708,-9217.04043119,0.00016812,2]
[370062256,1751872161733,-460.0,0.00016813,2]
[370062257,1751872161756,-460.0,0.00016813,2]
[370062258,1751872161779,-460.0,0.00016813,2]
[370062259,1751872161802,-460.0,0.00016813,2]
[370062260,1751872161824,-342.78643522,0.00016813,2]
[370062261,1751872161847,-460.0,0.00016813,2]
[370062262,1751872161870,-460.0,0.00016813,2]
[370062263,1751872161894,-460.0,0.00016813,2]
[370062264,1751872161919,-460.0,0.00016813,2]
[370062265,1751872161945,-460.60110635,0.00016813,2]
[370062266,1751872161971,-460.0,0.00016813,2]
[370062267,1751872161995,-460.0,0.00016813,2]
[370062268,1751872162021,-460.0,0.00016813,2]
[370062269,1751872162045,-460.0,0.00016813,2]
[370062270,1751872162069,-460.0,0.00016813,2]
[370062271,1751872162094,-460.0,0.00016813,2]
[370062272,1751872162120,-460.0,0.00016813,2]
[370062273,1751872162144,-460.0,0.00016813,2]
[370062274,1751872162168,-460.56157795,0.00016813,2]
[370062275,1751872162274,-460.0,0.00016813,2]
[370062276,1751872162306,-460.54968968,0.00016813,2]
[370062277,1751872162331,-460.0,0.00016813,2]
[370062278,1751872162353,-417.05222606,0.00016813,2]
[370062279,1751872162377,-2424.29,0.00016813,2]
[370062280,1751872162402,-460.0,0.00016813,2]
[370062281,1751872162426,-460.0,0.00016813,2]
[370062282,1751872162450,-331.19088156,0.00016813,2]
[370062283,1751872162476,-460.0,0.00016813,2]
[370062284,1751872162499,-460.0,0.00016813,2]
[370062285,1751872162526,-460.0,0.00016813,2]
[370062286,1751872162550,-460.0,0.00016813,2]
[370062287,1751872162575,-460.0,0.00016813,2]
[370062288,1751872162598,-460.0,0.00016813,2]
[370062289,1751872162625,-460.0,0.00016813,2]
[370062290,1751872162649,-460.0,0.00016813,2]
[370062291,1751872162673,-460.0,0.00016813,2]
[370062292,1751872162700,-3255.33,0.00016813,2]
[370062293,1751872162725,-1250.0,0.00016813,2]
[370062294,1751872162750,-287.27377818,0.00016813,2]
[370062324,1751872232545,-460.0,0.00016811,2]
[370062326,1751872232554,-460.0,0.00016811,2]
[370062328,1751872232563,-460.0,0.00016811,2]
[370062330,1751872232572,-300.0,0.00016811,2]
[370062332,1751872232582,-1200.0,0.00016811,2]
[370062334,1751872232591,-460.0,0.00016811,2]
[370062336,1751872232600,-460.0,0.00016811,2]
[370062338,1751872232609,-460.0,0.00016811,2]
[370062340,1751872232619,-460.0,0.00016812,2]
[370062342,1751872232628,-460.0,0.00016812,2]
[370062344,1751872232638,-460.0,0.00016812,2]
[370062346,1751872232647,-2426.09,0.00016812,2]
[370062348,1751872232656,-460.0,0.00016812,2]
[370062350,1751872232666,-460.0,0.00016812,2]
[370062352,1751872232675,-460.0,0.00016812,2]
[370062355,1751872232686,-387.91000004,0.00016812,2]
[370062357,1751872232699,-72.08999996,0.00016812,2]
[370062359,1751872232708,-172.72622182,0.00016813,2]
[370062361,1751872232718,-460.0,0.00016813,2]
[370062363,1751872232728,-460.0,0.00016813,2]
[370062365,1751872232737,-460.0,0.00016813,2]
[370062367,1751872232746,-460.0,0.00016813,2]
[370062369,1751872232755,-460.0,0.00016813,2]
[370062371,1751872232764,-460.0,0.00016813,2]
[370062373,1751872232774,-460.0,0.00016813,2]
[370062375,1751872232783,-2026.94017707,0.00016813,2]
[370062474,1751872236008,-267.88980492,0.00016811,2]
[370062475,1751872236064,-192.11019508,0.00016811,2]
[370062476,1751872236074,-9.71982293,0.00016813,2]
[370062478,1751872236084,-467.38112865,0.00016813,2]
[370062480,1751872236093,-460.0,0.00016813,2]
[370062483,1751872236103,-460.0,0.00016813,2]
[370062485,1751872236112,-460.0,0.00016813,2]
[370062486,1751872236122,-245.4011071,0.00016813,2]
[370062487,1751872236134,-214.5988929,0.00016813,2]
[370062488,1751872236143,-2229.51,0.00016813,2]
[370062489,1751872236153,-460.0,0.00016813,2]
[370062490,1751872236163,-460.0,0.00016813,2]
[370062491,1751872236173,-460.0,0.00016813,2]
[370062492,1751872236182,-460.0,0.00016813,2]
[370062493,1751872236191,-460.0,0.00016813,2]
[370062494,1751872236201,-2683.27184841,0.00016813,2]
[370062498,1751872238728,-460.0,0.00016812,2]
[370062499,1751872238737,-385.91815159,0.00016813,2]
[370062500,1751872238747,-460.0,0.00016813,2]
[370062501,1751872238756,-4160.38,0.00016813,2]
[370062502,1751872238766,-460.0,0.00016813,2]
[370062503,1751872238775,-460.0,0.00016813,2]
[370062504,1751872238784,-460.0,0.00016813,2]
[370062505,1751872238793,-1901.73,0.00016813,2]
[370062506,1751872238803,-460.0,0.00016813,2]
[370062507,1751872238812,-460.0,0.00016813,2]
[370062508,1751872238821,-688.84,0.00016813,2]
[370062509,1751872238830,-719.39,0.00016813,2]
[370062510,1751872238840,-460.0,0.00016813,2]
[370062511,1751872238849,-460.0,0.00016813,2]
[370062512,1751872238858,-460.0,0.00016813,2]
[370062513,1751872238867,-460.0,0.00016813,2]
[370062514,1751872238877,-570.99776529,0.00016813,2]
[370062515,1751872238886,-460.0,0.00016813,2]
[370062516,1751872238897,-400.55044373,0.00016813,2]
[370062517,1751872238908,-460.0,0.00016814,2]
[370062518,1751872238917,-460.0,0.00016814,2]
[370062519,1751872238926,-460.0,0.00016814,2]
[370062520,1751872238936,-460.0,0.00016814,2]
[370062521,1751872238946,-460.0,0.00016814,2]
[370062522,1751872238956,-460.0,0.00016814,2]
[370062523,1751872238965,-460.0,0.00016814,2]
[370062524,1751872238975,-460.0,0.00016814,2]
[370062525,1751872238985,-460.0,0.00016814,2]
[370062526,1751872238996,-460.0,0.00016814,2]
[370062527,1751872239006,-460.0,0.00016814,2]
[370062528,1751872239016,-460.0,0.00016814,2]
[370062529,1751872239026,-460.0,0.00016814,2]
[370062530,1751872239036,-460.0,0.00016814,2]
[370062531,1751872239045,-460.0,0.00016814,2]
[370062532,1751872239054,-460.0,0.00016814,2]
[370062533,1751872239063,-460.0,0.00016814,2]
[370062534,1751872239073,-460.0,0.00016814,2]
[370062535,1751872239082,-460.0,0.00016814,2]
[370062536,1751872239091,-460.0,0.00016814,2]
[370062537,1751872239100,-460.0,0.00016814,2]
[370062538,1751872239109,-460.0,0.00016814,2]
[370062539,1751872239118,-460.0,0.00016814,2]
[370062540,1751872239128,-460.0,0.00016814,2]
[370062541,1751872239137,-460.0,0.00016814,2]
[370062542,1751872239146,-460.0,0.00016814,2]
[370062543,1751872239156,-362.51618368,0.00016814,2]
[370062544,1751872239166,-460.0,0.00016814,2]
[370062545,1751872239175,-407.32086813,0.00016814,2]
[370062546,1751872239185,-460.0,0.00016814,2]
[370062547,1751872239194,-460.0,0.00016814,2]
[370062548,1751872239203,-460.0,0.00016814,2]
[370062549,1751872239213,-460.0,0.00016814,2]
[370062550,1751872239227,-460.0,0.00016814,2]
[370062551,1751872239236,-460.0,0.00016814,2]
[370062552,1751872239246,-460.0,0.00016814,2]
[370062553,1751872239255,-377.24184839,0.00016814,2]
[370062554,1751872239266,-460.0,0.00016814,2]
[370062555,1751872239275,-460.0,0.00016814,2]
[370062556,1751872239285,-460.0,0.00016814,2]
[370062557,1751872239295,-460.29462607,0.00016814,2]
[370062558,1751872239304,-460.0,0.00016814,2]
[370062559,1751872239313,-460.0,0.00016814,2]
[370062560,1751872239322,-460.0,0.00016814,2]
[370062561,1751872239332,-460.0,0.00016814,2]
[370062562,1751872239341,-460.0,0.00016814,2]
[370062563,1751872239351,-460.0,0.00016814,2]
[370062564,1751872239360,-460.0,0.00016814,2]
[370062565,1751872239370,-460.0,0.00016814,2]
[370062566,1751872239379,-460.0,0.00016814,2]
[370062567,1751872239388,-460.0,0.00016814,2]
[370062568,1751872239398,-460.0,0.00016814,2]
[370062569,1751872239407,-460.0,0.00016814,2]
[370062570,1751872239416,-460.0,0.00016814,2]
[370062571,1751872239425,-460.0,0.00016814,2]
[370062572,1751872239435,-460.0,0.00016814,2]
[370062573,1751872239444,-460.0,0.00016814,2]
[370062574,1751872239453,-460.0,0.00016814,2]
[370062575,1751872239462,-460.0,0.00016814,2]
[370062576,1751872239472,-460.0,0.00016814,2]
[370062577,1751872239481,-460.0,0.00016814,2]
[370062578,1751872239490,-460.0,0.00016814,2]
[370062579,1751872239499,-460.0,0.00016814,2]
[370062580,1751872239508,-460.0,0.00016814,2]
[370062581,1751872239518,-460.0,0.00016814,2]
[370062582,1751872239527,-460.0,0.00016814,2]
[370062583,1751872239536,-437.9794067,0.00016814,2]
[370062584,1751872239546,-460.0,0.00016814,2]
[370062585,1751872239555,-460.0,0.00016814,2]
[370062586,1751872239564,-460.0,0.00016814,2]
[370062587,1751872239574,-460.0,0.00016814,2]
[370062588,1751872239584,-460.0,0.00016814,2]
[370062589,1751872239593,-460.0,0.00016814,2]
[370062590,1751872239602,-460.0,0.00016814,2]
[370062591,1751872239611,-460.0,0.00016814,2]
[370062592,1751872239620,-460.0,0.00016814,2]
[370062593,1751872239630,-460.0,0.00016814,2]
[370062594,1751872239639,-460.0,0.00016814,2]
[370062595,1751872239735,-460.0,0.00016814,2]
[370062596,1751872239744,-460.0,0.00016814,2]
[370062597,1751872239754,-460.0,0.00016814,2]
[370062598,1751872239763,-460.0,0.00016814,2]
[370062599,1751872239772,-460.0,0.00016814,2]
[370062600,1751872239782,-460.0,0.00016814,2]
[370062601,1751872239795,-549.05550902,0.00016814,2]
[370062602,1751872239805,-460.0,0.00016814,2]
[370062603,1751872239814,-460.0,0.00016814,2]
[370062604,1751872239824,-460.0,0.00016814,2]
[370062605,1751872239833,-460.0,0.00016814,2]
[370062606,1751872239842,-460.0,0.00016814,2]
[370062607,1751872239852,-460.0,0.00016814,2]
[370062608,1751872239861,-460.0,0.00016814,2]
[370062609,1751872239871,-460.0,0.00016814,2]
[370062610,1751872239880,-460.0,0.00016814,2]
[370062611,1751872239891,-460.0,0.00016814,2]
[370062612,1751872239901,-460.0,0.00016814,2]
[370062613,1751872239911,-540.64863346,0.00016814,2]
[370062614,1751872239920,-460.0,0.00016814,2]
[370062615,1751872239930,-460.0,0.00016814,2]
[370062616,1751872239939,-460.0,0.00016814,2]
[370062617,1751872239948,-460.0,0.00016814,2]
[370062618,1751872239958,-460.0,0.00016814,2]
[370062619,1751872239967,-460.0,0.00016814,2]
[370062620,1751872239976,-460.0,0.00016814,2]
[370062621,1751872239986,-460.0,0.00016814,2]
[370062622,1751872239995,-460.0,0.00016814,2]
[370062623,1751872240004,-460.0,0.00016814,2]
[370062624,1751872240014,-460.0,0.00016814,2]
[370062625,1751872240023,-460.0,0.00016814,2]
[370062626,1751872240032,-460.0,0.00016814,2]
[370062627,1751872240044,-460.0,0.00016814,2]
[370062628,1751872240053,-460.0,0.00016814,2]
[370062629,1751872240063,-460.0,0.00016814,2]
[370062630,1751872240072,-460.0,0.00016814,2]
[370062631,1751872240081,-460.0,0.00016814,2]
[370062632,1751872240092,-460.0,0.00016814,2]
[370062633,1751872240103,-460.0,0.00016814,2]
[370062634,1751872240112,-460.0,0.00016814,2]
[370062635,1751872240122,-460.0,0.00016814,2]
[370062636,1751872240131,-460.0,0.00016814,2]
[370062637,1751872240140,-460.0,0.00016814,2]
[370062638,1751872240149,-611.36,0.00016814,2]
[370062639,1751872240159,-460.0,0.00016814,2]
[370062640,1751872240168,-460.0,0.00016814,2]
[370062641,1751872240177,-460.0,0.00016814,2]
[370062642,1751872240187,-460.0,0.00016814,2]
[370062643,1751872240202,-461.09912217,0.00016814,2]
[370062644,1751872240211,-460.0,0.00016814,2]
[370062645,1751872240223,-460.0,0.00016814,2]
[370062646,1751872240233,-460.0,0.00016814,2]
[370062647,1751872240243,-460.39063072,0.00016814,2]
[370062648,1751872240253,-460.0,0.00016814,2]
[370062649,1751872240263,-460.0,0.00016814,2]
[370062650,1751872240272,-460.0,0.00016814,2]
[370062651,1751872240282,-418.36982954,0.00016814,2]
[370062652,1751872240291,-460.0,0.00016814,2]
[370062653,1751872240302,-460.0,0.00016814,2]
[370062654,1751872240312,-462.47690914,0.00016814,2]
[370062655,1751872240321,-460.0,0.00016814,2]
[370062656,1751872240331,-460.95421013,0.00016814,2]
[370062657,1751872240341,-460.0,0.00016814,2]
[370062658,1751872240350,-460.0,0.00016814,2]
[370062659,1751872240360,-460.0,0.00016814,2]
[370062660,1751872240369,-460.0,0.00016814,2]
[370062661,1751872240378,-460.31965669,0.00016814,2]
[370062662,1751872240387,-460.0,0.00016814,2]
[370062663,1751872240396,-460.0,0.00016814,2]
[370062664,1751872240405,-460.0,0.00016814,2]
[370062665,1751872240416,-460.0,0.00016814,2]
[370062666,1751872240427,-460.0,0.00016814,2]
[370062667,1751872240436,-460.0,0.00016814,2]
[370062668,1751872240446,-460.0,0.00016814,2]
[370062669,1751872240457,-460.0,0.00016814,2]
[370062670,1751872240467,-511.51799582,0.00016814,2]
[370062671,1751872240477,-460.0,0.00016814,2]
[370062672,1751872240487,-460.0,0.00016814,2]
[370062673,1751872240497,-460.0,0.00016814,2]
[370062674,1751872240507,-460.0,0.00016814,2]
[370062675,1751872240518,-460.0,0.00016814,2]
[370062676,1751872240528,-460.0,0.00016814,2]
[370062677,1751872240540,-460.0,0.00016814,2]
[370062678,1751872240550,-460.0,0.00016814,2]
[370062679,1751872240559,-460.44103959,0.00016814,2]
[370062680,1751872240569,-460.0,0.00016814,2]
[370062681,1751872240579,-520.88,0.00016814,2]
[370062682,1751872240588,-460.0,0.00016814,2]
[370062683,1751872240597,-460.0,0.00016814,2]
[370062684,1751872240606,-461.35177591,0.00016814,2]
[370062685,1751872240615,-460.0,0.00016814,2]
[370062686,1751872240624,-460.0,0.00016814,2]
[370062687,1751872240634,-460.0,0.00016814,2]
[370062688,1751872240643,-374.37230135,0.00016814,2]
[370062689,1751872240652,-460.0,0.00016814,2]
[370062690,1751872240667,-460.0,0.00016814,2]
[370062691,1751872240677,-460.53889935,0.00016814,2]
[370062692,1751872240688,-460.0,0.00016814,2]
[370062693,1751872240698,-460.0,0.00016814,2]
[370062694,1751872240708,-461.15983297,0.00016814,2]
[370062695,1751872240718,-460.0,0.00016814,2]
[370062696,1751872240729,-460.0,0.00016814,2]
[370062697,1751872240739,-460.0,0.00016814,2]
[370062698,1751872240748,-460.0,0.00016814,2]
[370062699,1751872240757,-460.0,0.00016814,2]
[370062700,1751872240766,-253.21682881,0.00016814,2]
[370062701,1751872240775,-494.42,0.00016814,2]
[370062702,1751872240784,-460.0,0.00016814,2]
[370062703,1751872240793,-460.0,0.00016814,2]
[370062704,1751872240802,-460.0,0.00016814,2]
[370062705,1751872240812,-460.0,0.00016814,2]